[Event "Titled Tuesday Blitz August 17 2021"]
[White "mmaks007"]
[Black "Lauridsen, Jesper Morch"]
[BlackFideId "1401890"]
[WhiteElo "2199"]
[BlackElo "2318"]
[Result "0-1"]
[Round "06"]
[TimeControl "180+1"]
[Date "2021.08.18"]
[WhiteClock "0:00:05"]
[BlackClock "0:00:03"]

1. e4 {[%clk 0:03:00]}  c5 {[%clk 0:02:57]} 2. Nf3 {[%clk 0:03:01]}  d6 {[%clk 0:02:56]} 3. d4 {[%clk 0:03:01]}  cxd4 {[%clk 0:02:56]} 4. Nxd4 {[%clk 0:03:02]}  Nf6 {[%clk 0:02:57]} 5. Nc3 {[%clk 0:03:03]}  a6 {[%clk 0:02:56]} 6. Bg5 {[%clk 0:03:03]}  e6 {[%clk 0:02:55]} 7. f4 {[%clk 0:03:03]}  Qc7 {[%clk 0:02:54]} 8. Qf3 {[%clk 0:02:59]}  b5 {[%clk 0:02:54]} 9. a3 {[%clk 0:02:54]}  Bb7 {[%clk 0:02:54]} 10. O-O-O {[%clk 0:02:54]}  Nbd7 {[%clk 0:02:50]} 11. Qe2 {[%clk 0:02:52]}  Be7 {[%clk 0:02:45]} 12. g4 {[%clk 0:02:50]}  Rc8 {[%clk 0:02:25]} 13. Bg2 {[%clk 0:02:48]}  Nb6 {[%clk 0:02:11]} 14. h4 {[%clk 0:02:46]}  Qc4 {[%clk 0:01:59]} 15. Qxc4 {[%clk 0:02:38]}  Nxc4 {[%clk 0:01:59]} 16. Bxf6 {[%clk 0:02:36]}  Bxf6 {[%clk 0:01:50]} 17. Rh3 {[%clk 0:02:30]}  O-O {[%clk 0:01:41]} 18. g5 {[%clk 0:02:30]}  Bxd4 {[%clk 0:01:36]} 19. Rxd4 {[%clk 0:02:29]}  e5 {[%clk 0:01:37]} 20. fxe5 {[%clk 0:02:28]}  dxe5 {[%clk 0:01:33]} 21. Rd7 {[%clk 0:02:28]}  Bc6 {[%clk 0:01:29]} 22. Rd1 {[%clk 0:02:23]}  a5 {[%clk 0:01:28]} 23. Nd5 {[%clk 0:02:19]}  Rfe8 {[%clk 0:01:18]} 24. h5 {[%clk 0:02:14]}  Bxd5 {[%clk 0:01:07]} 25. Rxd5 {[%clk 0:02:10]}  b4 {[%clk 0:01:03]} 26. Bf1 {[%clk 0:02:04]}  bxa3 {[%clk 0:01:01]} 27. Bxc4 {[%clk 0:02:04]}  axb2+ {[%clk 0:01:00]} 28. Kxb2 {[%clk 0:02:04]}  Rxc4 {[%clk 0:01:00]} 29. Rxa5 {[%clk 0:02:01]}  Rxe4 {[%clk 0:00:54]} 30. h6 {[%clk 0:01:55]}  Rg4 {[%clk 0:00:51]} 31. Rha3 {[%clk 0:01:52]}  Rb4+ {[%clk 0:00:43]} 32. Ka2 {[%clk 0:01:50]}  Reb8 {[%clk 0:00:36]} 33. R3a4 {[%clk 0:01:42]}  Rb2+ {[%clk 0:00:28]} 34. Ka3 {[%clk 0:01:42]}  Rxc2 {[%clk 0:00:25]} 35. Rxe5 {[%clk 0:01:40]}  Rc3+ {[%clk 0:00:24]} 36. Ka2 {[%clk 0:01:41]}  Rc6 {[%clk 0:00:20]} 37. hxg7 {[%clk 0:01:36]}  Kxg7 {[%clk 0:00:19]} 38. Ra3 {[%clk 0:01:26]}  Rd8 {[%clk 0:00:19]} 39. Rf3 {[%clk 0:01:23]}  Rd2+ {[%clk 0:00:19]} 40. Kb3 {[%clk 0:01:22]}  Rd4 {[%clk 0:00:17]} 41. Ref5 {[%clk 0:01:21]}  Rc7 {[%clk 0:00:16]} 42. Kb2 {[%clk 0:01:17]}  Rb4+ {[%clk 0:00:15]} 43. Ka3 {[%clk 0:01:13]}  Rb6 {[%clk 0:00:13]} 44. Ra5 {[%clk 0:01:12]}  Kg6 {[%clk 0:00:12]} 45. Rh3 {[%clk 0:01:08]}  Rcc6 {[%clk 0:00:10]} 46. Rh6+ {[%clk 0:01:06]}  Kg7 {[%clk 0:00:09]} 47. Rh3 {[%clk 0:01:03]}  Ra6 {[%clk 0:00:08]} 48. Rxa6 {[%clk 0:01:02]}  Rxa6+ {[%clk 0:00:08]} 49. Kb4 {[%clk 0:01:01]}  Rg6 {[%clk 0:00:08]} 50. Rg3 {[%clk 0:01:00]}  f6 {[%clk 0:00:08]} 51. gxf6+ {[%clk 0:00:59]}  Kxf6 {[%clk 0:00:07]} 52. Rh3 {[%clk 0:00:57]}  Kg7 {[%clk 0:00:08]} 53. Kc4 {[%clk 0:00:57]}  Rd6 {[%clk 0:00:07]} 54. Kc5 {[%clk 0:00:57]}  Rd2 {[%clk 0:00:06]} 55. Rg3+ {[%clk 0:00:54]}  Kf6 {[%clk 0:00:06]} 56. Rf3+ {[%clk 0:00:54]}  Kg6 {[%clk 0:00:07]} 57. Rg3+ {[%clk 0:00:55]}  Kf5 {[%clk 0:00:07]} 58. Rf3+ {[%clk 0:00:52]}  Kg4 {[%clk 0:00:06]} 59. Ra3 {[%clk 0:00:46]}  h5 {[%clk 0:00:06]} 60. Ra4+ {[%clk 0:00:30]}  Kg5 {[%clk 0:00:06]} 61. Ra8 {[%clk 0:00:29]}  h4 {[%clk 0:00:05]} 62. Rg8+ {[%clk 0:00:28]}  Kf4 {[%clk 0:00:05]} 63. Kc4 {[%clk 0:00:26]}  h3 {[%clk 0:00:05]} 64. Kc3 {[%clk 0:00:25]}  Rd7 {[%clk 0:00:05]} 65. Rh8 {[%clk 0:00:24]}  Kg3 {[%clk 0:00:05]} 66. Rg8+ {[%clk 0:00:23]}  Kh2 {[%clk 0:00:05]} 67. Rh8 {[%clk 0:00:24]}  Kg2 {[%clk 0:00:05]} 68. Rg8+ {[%clk 0:00:23]}  Kh1 {[%clk 0:00:05]} 69. Rh8 {[%clk 0:00:24]}  h2 {[%clk 0:00:05]} 70. Kc2 {[%clk 0:00:24]}  Rg7 {[%clk 0:00:04]} 71. Rh7 {[%clk 0:00:05]}  Rxh7 {[%clk 0:00:03]} 0-1


[Site "https://www.chess.com"]

[Event "Titled Tuesday Blitz August 17 2021"]
[White "Abdurakhmonov, Mukhammadali"]
[Black "Primbetov, Kazbek"]
[WhiteFideId "14207346"]
[BlackFideId "13702297"]
[WhiteElo "2266"]
[BlackElo "2184"]
[Result "1-0"]
[Round "07"]
[TimeControl "180+1"]
[Date "2021.08.17"]
[WhiteClock "0:00:58"]
[BlackClock "0:00:30"]

1. e4 {[%clk 0:03:00]}  e6 {[%clk 0:03:00]} 2. Qe2 {[%clk 0:02:55]}  e5 {[%clk 0:02:56]} 3. f4 {[%clk 0:02:44]}  exf4 {[%clk 0:02:44]} 4. d4 {[%clk 0:02:40]}  g5 {[%clk 0:02:31]} 5. h4 {[%clk 0:02:37]}  Bg7 {[%clk 0:02:21]} 6. c3 {[%clk 0:02:34]}  h6 {[%clk 0:02:20]} 7. hxg5 {[%clk 0:02:26]}  hxg5 {[%clk 0:02:20]} 8. Rxh8 {[%clk 0:02:26]}  Bxh8 {[%clk 0:02:20]} 9. Qh5 {[%clk 0:02:27]}  Bf6 {[%clk 0:01:53]} 10. e5 {[%clk 0:02:25]}  Bg7 {[%clk 0:01:36]} 11. Nf3 {[%clk 0:02:23]}  d5 {[%clk 0:01:24]} 12. Nxg5 {[%clk 0:02:07]}  Qe7 {[%clk 0:01:24]} 13. Bxf4 {[%clk 0:02:05]}  Bf5 {[%clk 0:01:17]} 14. Nd2 {[%clk 0:01:53]}  Nc6 {[%clk 0:01:14]} 15. O-O-O {[%clk 0:01:43]}  Bg6 {[%clk 0:01:09]} 16. Qf3 {[%clk 0:01:41]}  O-O-O {[%clk 0:01:07]} 17. Bd3 {[%clk 0:01:35]}  Bxd3 {[%clk 0:01:00]} 18. Qxd3 {[%clk 0:01:36]}  f6 {[%clk 0:01:01]} 19. Qf5+ {[%clk 0:01:33]}  Kb8 {[%clk 0:01:00]} 20. Ne6 {[%clk 0:01:33]}  Re8 {[%clk 0:00:53]} 21. Nxc7 {[%clk 0:01:28]}  fxe5 {[%clk 0:00:44]} 22. Nxe8 {[%clk 0:01:26]}  Qxe8 {[%clk 0:00:39]} 23. dxe5 {[%clk 0:01:18]}  Nge7 {[%clk 0:00:39]} 24. e6+ {[%clk 0:01:18]}  Kc8 {[%clk 0:00:39]} 25. Qf7 {[%clk 0:01:18]}  Qxf7 {[%clk 0:00:33]} 26. exf7 {[%clk 0:01:19]}  Nd8 {[%clk 0:00:34]} 27. Bg5 {[%clk 0:01:07]}  Kd7 {[%clk 0:00:31]} 28. Re1 {[%clk 0:01:03]}  Bf8 {[%clk 0:00:31]} 29. Nf3 {[%clk 0:00:56]}  Nxf7 {[%clk 0:00:30]} 30. Bxe7 {[%clk 0:00:56]}  Bxe7 {[%clk 0:00:30]} 31. Ne5+ {[%clk 0:00:57]}  Nxe5 {[%clk 0:00:30]} 32. Rxe5 {[%clk 0:00:58]} 1-0


[Site "https://www.chess.com"]

[Event "Titled Tuesday Blitz August 17 2021"]
[White "Alavkin, Arseny"]
[Black "Sahil, Tickoo"]
[WhiteFideId "4120612"]
[BlackFideId "5019710"]
[WhiteElo "2391"]
[BlackElo "2099"]
[Result "1-0"]
[Round "07"]
[TimeControl "180+1"]
[Date "2021.08.18"]
[WhiteClock "0:00:10"]
[BlackClock "0:00:04"]

1. d4 {[%clk 0:03:00]}  d5 {[%clk 0:02:55]} 2. c4 {[%clk 0:03:00]}  e6 {[%clk 0:02:55]} 3. Nc3 {[%clk 0:02:59]}  Nf6 {[%clk 0:02:55]} 4. Bg5 {[%clk 0:02:51]}  Be7 {[%clk 0:02:53]} 5. cxd5 {[%clk 0:02:49]}  Nxd5 {[%clk 0:02:48]} 6. Bxe7 {[%clk 0:02:45]}  Qxe7 {[%clk 0:02:46]} 7. e4 {[%clk 0:02:42]}  Nxc3 {[%clk 0:02:45]} 8. bxc3 {[%clk 0:02:42]}  O-O {[%clk 0:02:45]} 9. Nf3 {[%clk 0:02:42]}  c5 {[%clk 0:02:45]} 10. Bd3 {[%clk 0:02:39]}  b6 {[%clk 0:02:43]} 11. O-O {[%clk 0:02:38]}  Bb7 {[%clk 0:02:43]} 12. Re1 {[%clk 0:02:36]}  Nd7 {[%clk 0:02:39]} 13. Qd2 {[%clk 0:02:23]}  cxd4 {[%clk 0:02:38]} 14. cxd4 {[%clk 0:02:22]}  Rfd8 {[%clk 0:02:38]} 15. Rad1 {[%clk 0:02:18]}  Rac8 {[%clk 0:02:36]} 16. Qf4 {[%clk 0:02:14]}  Qf6 {[%clk 0:02:26]} 17. Qg3 {[%clk 0:02:01]}  Qg6 {[%clk 0:01:56]} 18. Qh3 {[%clk 0:01:59]}  e5 {[%clk 0:01:29]} 19. d5 {[%clk 0:01:44]}  f6 {[%clk 0:01:06]} 20. Nh4 {[%clk 0:01:40]}  Qf7 {[%clk 0:01:01]} 21. Nf5 {[%clk 0:01:39]}  Nc5 {[%clk 0:00:58]} 22. Qg3 {[%clk 0:01:38]}  Kh8 {[%clk 0:00:55]} 23. Bb1 {[%clk 0:01:32]}  Ba6 {[%clk 0:00:49]} 24. d6 {[%clk 0:01:29]}  Ne6 {[%clk 0:00:43]} 25. Ne7 {[%clk 0:01:13]}  Ra8 {[%clk 0:00:36]} 26. Nc6 {[%clk 0:01:10]}  Rd7 {[%clk 0:00:32]} 27. Bc2 {[%clk 0:01:07]}  Bb5 {[%clk 0:00:29]} 28. Ne7 {[%clk 0:00:56]}  Nd4 {[%clk 0:00:23]} 29. Bb3 {[%clk 0:00:53]}  Nxb3 {[%clk 0:00:18]} 30. axb3 {[%clk 0:00:54]}  Rad8 {[%clk 0:00:19]} 31. Nf5 {[%clk 0:00:51]}  g6 {[%clk 0:00:18]} 32. Nh6 {[%clk 0:00:51]}  Qe6 {[%clk 0:00:16]} 33. Ra1 {[%clk 0:00:43]}  a6 {[%clk 0:00:16]} 34. h4 {[%clk 0:00:41]}  Rxd6 {[%clk 0:00:15]} 35. h5 {[%clk 0:00:41]}  Kg7 {[%clk 0:00:12]} 36. Nf5+ {[%clk 0:00:40]}  Kf7 {[%clk 0:00:11]} 37. Nxd6+ {[%clk 0:00:40]}  Qxd6 {[%clk 0:00:11]} 38. Rac1 {[%clk 0:00:36]}  Rd7 {[%clk 0:00:09]} 39. Rc3 {[%clk 0:00:33]}  Qe6 {[%clk 0:00:08]} 40. Rec1 {[%clk 0:00:31]}  Kg7 {[%clk 0:00:07]} 41. Qh4 {[%clk 0:00:30]}  g5 {[%clk 0:00:06]} 42. h6+ {[%clk 0:00:29]}  Kg6 {[%clk 0:00:06]} 43. Qh2 {[%clk 0:00:28]}  a5 {[%clk 0:00:05]} 44. Rc8 {[%clk 0:00:25]}  Rd1+ {[%clk 0:00:02]} 45. Rxd1 {[%clk 0:00:24]}  Qxc8 {[%clk 0:00:02]} 46. Qg3 {[%clk 0:00:23]}  Qe6 {[%clk 0:00:02]} 47. Rd8 {[%clk 0:00:18]}  Kxh6 {[%clk 0:00:03]} 48. Qc3 {[%clk 0:00:16]}  Kg6 {[%clk 0:00:03]} 49. Qc7 {[%clk 0:00:17]}  Bc6 {[%clk 0:00:02]} 50. Rd6 {[%clk 0:00:16]}  Qxb3 {[%clk 0:00:01]} 51. Qxc6 {[%clk 0:00:15]}  Qb1+ {[%clk 0:00:01]} 52. Kh2 {[%clk 0:00:14]}  Qe1 {[%clk 0:00:02]} 53. Rxf6+ {[%clk 0:00:13]}  Kh5 {[%clk 0:00:02]} 54. Rh6+ {[%clk 0:00:11]}  Kg4 {[%clk 0:00:03]} 55. Qe6+ {[%clk 0:00:10]}  Kf4 {[%clk 0:00:04]} 56. Qf5# {[%clk 0:00:10]} 1-0


[Site "https://www.chess.com"]

[Event "Titled Tuesday Blitz August 17 2021"]
[White "Aldokhin, Ivan"]
[Black "Idrisov, Ildar F"]
[WhiteFideId "24115720"]
[BlackFideId "4151020"]
[WhiteElo "2306"]
[BlackElo "2209"]
[Result "1-0"]
[Round "07"]
[TimeControl "180+1"]
[Date "2021.08.17"]
[WhiteClock "0:00:16"]
[BlackClock "0:00:40"]

1. e4 {[%clk 0:03:00]}  d5 {[%clk 0:02:58]} 2. exd5 {[%clk 0:03:00]}  Qxd5 {[%clk 0:02:58]} 3. Nc3 {[%clk 0:03:01]}  Qd6 {[%clk 0:02:59]} 4. Bc4 {[%clk 0:03:00]}  a6 {[%clk 0:02:58]} 5. Nge2 {[%clk 0:03:01]}  Nf6 {[%clk 0:02:58]} 6. d4 {[%clk 0:03:01]}  Bg4 {[%clk 0:02:55]} 7. Bf4 {[%clk 0:02:59]}  Qxf4 {[%clk 0:02:51]} 8. Nxf4 {[%clk 0:02:58]}  Bxd1 {[%clk 0:02:51]} 9. Rxd1 {[%clk 0:02:58]}  e6 {[%clk 0:02:50]} 10. d5 {[%clk 0:02:55]}  Bd6 {[%clk 0:02:47]} 11. Nce2 {[%clk 0:02:44]}  e5 {[%clk 0:02:45]} 12. Nd3 {[%clk 0:02:43]}  Nbd7 {[%clk 0:02:38]} 13. Ng3 {[%clk 0:02:39]}  g6 {[%clk 0:02:37]} 14. O-O {[%clk 0:02:35]}  O-O {[%clk 0:02:36]} 15. f3 {[%clk 0:02:26]}  Nc5 {[%clk 0:02:34]} 16. Nxc5 {[%clk 0:02:20]}  Bxc5+ {[%clk 0:02:33]} 17. Kh1 {[%clk 0:02:20]}  Rae8 {[%clk 0:02:30]} 18. Rfe1 {[%clk 0:02:16]}  Kg7 {[%clk 0:02:29]} 19. Re2 {[%clk 0:02:14]}  Bd6 {[%clk 0:02:23]} 20. a4 {[%clk 0:02:10]}  Nd7 {[%clk 0:02:17]} 21. c3 {[%clk 0:02:00]}  f5 {[%clk 0:02:17]} 22. a5 {[%clk 0:01:59]}  Re7 {[%clk 0:02:11]} 23. Bb3 {[%clk 0:01:56]}  Rfe8 {[%clk 0:02:11]} 24. Ba4 {[%clk 0:01:55]}  Rd8 {[%clk 0:02:08]} 25. Bxd7 {[%clk 0:01:44]}  Rexd7 {[%clk 0:02:05]} 26. b4 {[%clk 0:01:33]}  Re7 {[%clk 0:02:01]} 27. Kg1 {[%clk 0:01:32]}  Rde8 {[%clk 0:02:00]} 28. Kf2 {[%clk 0:01:29]}  e4 {[%clk 0:01:59]} 29. fxe4 {[%clk 0:01:28]}  Bxg3+ {[%clk 0:01:59]} 30. hxg3 {[%clk 0:01:21]}  Rxe4 {[%clk 0:01:58]} 31. Rxe4 {[%clk 0:01:13]}  Rxe4 {[%clk 0:01:58]} 32. d6 {[%clk 0:01:13]}  cxd6 {[%clk 0:01:52]} 33. Rxd6 {[%clk 0:01:14]}  Rc4 {[%clk 0:01:52]} 34. Rd7+ {[%clk 0:01:13]}  Kh6 {[%clk 0:01:53]} 35. Rxb7 {[%clk 0:01:10]}  Rxc3 {[%clk 0:01:53]} 36. Rb6 {[%clk 0:00:57]}  Rb3 {[%clk 0:01:52]} 37. Ke2 {[%clk 0:00:56]}  Kg5 {[%clk 0:01:42]} 38. Kd2 {[%clk 0:00:56]}  Kg4 {[%clk 0:01:42]} 39. Kc2 {[%clk 0:00:55]}  Ra3 {[%clk 0:01:38]} 40. Rxa6 {[%clk 0:00:52]}  Kxg3 {[%clk 0:01:38]} 41. b5 {[%clk 0:00:53]}  Ra4 {[%clk 0:01:34]} 42. b6 {[%clk 0:00:32]}  Rb4 {[%clk 0:01:33]} 43. Ra7 {[%clk 0:00:32]}  Kxg2 {[%clk 0:01:33]} 44. b7 {[%clk 0:00:28]}  f4 {[%clk 0:01:32]} 45. a6 {[%clk 0:00:29]}  f3 {[%clk 0:01:32]} 46. Ra8 {[%clk 0:00:29]}  f2 {[%clk 0:01:19]} 47. Rf8 {[%clk 0:00:29]}  f1=Q {[%clk 0:00:55]} 48. Rxf1 {[%clk 0:00:28]}  Kxf1 {[%clk 0:00:54]} 49. a7 {[%clk 0:00:28]}  Rxb7 {[%clk 0:00:54]} 50. a8=Q {[%clk 0:00:29]}  Rc7+ {[%clk 0:00:51]} 51. Kd2 {[%clk 0:00:24]}  Kf2 {[%clk 0:00:45]} 52. Qf8+ {[%clk 0:00:21]}  Kg2 {[%clk 0:00:43]} 53. Qa8+ {[%clk 0:00:18]}  Kh3 {[%clk 0:00:40]} 54. Qf3+ {[%clk 0:00:16]} 1-0


[Site "https://www.chess.com"]

[Event "Titled Tuesday Blitz August 17 2021"]
[White "Avramidou, Anastasia"]
[Black "Shimelkov, Vasiliy"]
[WhiteFideId "4239873"]
[BlackFideId "13701630"]
[WhiteElo "2183"]
[BlackElo "2073"]
[Result "0-1"]
[Round "07"]
[TimeControl "180+1"]
[Date "2021.08.17"]
[WhiteClock "0:00:05"]
[BlackClock "0:00:18"]

1. c4 {[%clk 0:03:00]}  c5 {[%clk 0:02:58]} 2. Nc3 {[%clk 0:02:58]}  Nc6 {[%clk 0:02:58]} 3. Nf3 {[%clk 0:02:57]}  Nf6 {[%clk 0:02:54]} 4. e3 {[%clk 0:02:57]}  g6 {[%clk 0:02:50]} 5. d4 {[%clk 0:02:57]}  cxd4 {[%clk 0:02:50]} 6. exd4 {[%clk 0:02:57]}  d5 {[%clk 0:02:44]} 7. cxd5 {[%clk 0:02:55]}  Nxd5 {[%clk 0:02:44]} 8. Bc4 {[%clk 0:02:56]}  Nb6 {[%clk 0:02:41]} 9. Bb3 {[%clk 0:02:56]}  Bg7 {[%clk 0:02:39]} 10. Be3 {[%clk 0:02:55]}  O-O {[%clk 0:02:36]} 11. h3 {[%clk 0:02:55]}  Na5 {[%clk 0:02:34]} 12. O-O {[%clk 0:02:50]}  Nxb3 {[%clk 0:02:31]} 13. Qxb3 {[%clk 0:02:50]}  Be6 {[%clk 0:02:27]} 14. Qc2 {[%clk 0:02:44]}  Nc4 {[%clk 0:02:23]} 15. Bf4 {[%clk 0:02:35]}  Rc8 {[%clk 0:02:20]} 16. Rad1 {[%clk 0:02:31]}  a6 {[%clk 0:02:13]} 17. Rfe1 {[%clk 0:02:27]}  b5 {[%clk 0:02:10]} 18. Qe2 {[%clk 0:02:19]}  Re8 {[%clk 0:02:05]} 19. d5 {[%clk 0:02:02]}  Bf5 {[%clk 0:01:58]} 20. Ne5 {[%clk 0:01:55]}  Nxe5 {[%clk 0:01:51]} 21. Bxe5 {[%clk 0:01:54]}  Bxe5 {[%clk 0:01:48]} 22. Qxe5 {[%clk 0:01:54]}  b4 {[%clk 0:01:47]} 23. Ne2 {[%clk 0:01:46]}  Qd6 {[%clk 0:01:38]} 24. Nd4 {[%clk 0:01:30]}  Qxe5 {[%clk 0:01:33]} 25. Rxe5 {[%clk 0:01:30]}  Bd7 {[%clk 0:01:32]} 26. Rde1 {[%clk 0:01:25]}  Kf8 {[%clk 0:01:29]} 27. b3 {[%clk 0:01:23]}  a5 {[%clk 0:01:25]} 28. h4 {[%clk 0:01:14]}  f6 {[%clk 0:01:20]} 29. Ne6+ {[%clk 0:01:00]}  Bxe6 {[%clk 0:01:16]} 30. Rxe6 {[%clk 0:01:01]}  Rcd8 {[%clk 0:01:13]} 31. Rd1 {[%clk 0:00:56]}  Rd6 {[%clk 0:01:11]} 32. Rxd6 {[%clk 0:00:45]}  exd6 {[%clk 0:01:10]} 33. Rd2 {[%clk 0:00:45]}  Re5 {[%clk 0:01:05]} 34. g3 {[%clk 0:00:42]}  g5 {[%clk 0:01:03]} 35. hxg5 {[%clk 0:00:38]}  fxg5 {[%clk 0:01:01]} 36. Kg2 {[%clk 0:00:39]}  Kf7 {[%clk 0:00:57]} 37. f4 {[%clk 0:00:39]}  gxf4 {[%clk 0:00:54]} 38. gxf4 {[%clk 0:00:40]}  Re3 {[%clk 0:00:54]} 39. Kf2 {[%clk 0:00:40]}  Rh3 {[%clk 0:00:51]} 40. Kg2 {[%clk 0:00:40]}  Rc3 {[%clk 0:00:48]} 41. Kf2 {[%clk 0:00:33]}  Kf6 {[%clk 0:00:45]} 42. Re2 {[%clk 0:00:34]}  Kf5 {[%clk 0:00:44]} 43. Re6 {[%clk 0:00:33]}  Kxf4 {[%clk 0:00:40]} 44. Rxd6 {[%clk 0:00:33]}  Rc2+ {[%clk 0:00:40]} 45. Ke1 {[%clk 0:00:26]}  Ke3 {[%clk 0:00:36]} 46. Kd1 {[%clk 0:00:24]}  Rxa2 {[%clk 0:00:33]} 47. Kc1 {[%clk 0:00:19]}  Kd3 {[%clk 0:00:30]} 48. Rd8 {[%clk 0:00:10]}  Rh2 {[%clk 0:00:26]} 49. d6 {[%clk 0:00:09]}  Kc3 {[%clk 0:00:24]} 50. Kd1 {[%clk 0:00:09]}  Rh6 {[%clk 0:00:22]} 51. d7 {[%clk 0:00:04]}  Rd6+ {[%clk 0:00:21]} 52. Ke2 {[%clk 0:00:02]}  Kxb3 {[%clk 0:00:21]} 53. Ke3 {[%clk 0:00:03]}  a4 {[%clk 0:00:21]} 54. Ke4 {[%clk 0:00:04]}  a3 {[%clk 0:00:21]} 55. Ke5 {[%clk 0:00:05]}  Rd1 {[%clk 0:00:21]} 56. Ke6 {[%clk 0:00:04]}  a2 {[%clk 0:00:21]} 57. Ra8 {[%clk 0:00:05]}  Kb2 {[%clk 0:00:19]} 58. Ke7 {[%clk 0:00:05]}  Rxd7+ {[%clk 0:00:19]} 59. Kxd7 {[%clk 0:00:05]}  a1=Q {[%clk 0:00:18]} 0-1


[Site "https://www.chess.com"]

[Event "Titled Tuesday Blitz August 17 2021"]
[White "Bodnar, Nikolay"]
[Black "Skliarov, Viktor"]
[WhiteFideId "14106469"]
[BlackFideId "14106736"]
[WhiteElo "2296"]
[BlackElo "2281"]
[Result "1-0"]
[Round "07"]
[TimeControl "180+1"]
[Date "2021.08.17"]
[WhiteClock "0:00:47"]
[BlackClock "0:00:05"]

1. e4 {[%clk 0:02:58]}  c5 {[%clk 0:03:00]} 2. Nf3 {[%clk 0:02:58]}  Nc6 {[%clk 0:03:00]} 3. Bb5 {[%clk 0:02:57]}  e6 {[%clk 0:03:01]} 4. O-O {[%clk 0:02:55]}  Nge7 {[%clk 0:03:01]} 5. d4 {[%clk 0:02:55]}  cxd4 {[%clk 0:03:01]} 6. Nxd4 {[%clk 0:02:56]}  Qb6 {[%clk 0:03:00]} 7. Bxc6 {[%clk 0:02:41]}  Nxc6 {[%clk 0:02:58]} 8. Nb3 {[%clk 0:02:38]}  a6 {[%clk 0:02:54]} 9. c4 {[%clk 0:02:37]}  d6 {[%clk 0:02:43]} 10. Nc3 {[%clk 0:02:35]}  Be7 {[%clk 0:02:39]} 11. Re1 {[%clk 0:02:35]}  O-O {[%clk 0:02:39]} 12. Be3 {[%clk 0:02:35]}  Qc7 {[%clk 0:02:37]} 13. Rc1 {[%clk 0:02:28]}  Ne5 {[%clk 0:02:30]} 14. Na4 {[%clk 0:02:17]}  Bd7 {[%clk 0:02:27]} 15. Nb6 {[%clk 0:02:13]}  Rad8 {[%clk 0:02:00]} 16. f4 {[%clk 0:01:54]}  Ng6 {[%clk 0:01:59]} 17. g3 {[%clk 0:01:54]}  Qb8 {[%clk 0:01:31]} 18. Nxd7 {[%clk 0:01:40]}  Rxd7 {[%clk 0:01:29]} 19. f5 {[%clk 0:01:34]}  Ne5 {[%clk 0:01:27]} 20. Nd4 {[%clk 0:01:34]}  exf5 {[%clk 0:01:15]} 21. Nxf5 {[%clk 0:01:34]}  Bf6 {[%clk 0:01:12]} 22. Rf1 {[%clk 0:01:34]}  b5 {[%clk 0:01:07]} 23. Nh6+ {[%clk 0:01:08]}  Kh8 {[%clk 0:01:06]} 24. Rxf6 {[%clk 0:00:54]}  gxf6 {[%clk 0:01:04]} 25. Qf1 {[%clk 0:00:53]}  Qd8 {[%clk 0:00:51]} 26. cxb5 {[%clk 0:00:53]}  axb5 {[%clk 0:00:49]} 27. Rc8 {[%clk 0:00:53]}  Qe7 {[%clk 0:00:43]} 28. Nf5 {[%clk 0:00:51]}  Rxc8 {[%clk 0:00:20]} 29. Nxe7 {[%clk 0:00:51]}  Ng4 {[%clk 0:00:20]} 30. Bd4 {[%clk 0:00:50]}  Rxe7 {[%clk 0:00:08]} 31. Bxf6+ {[%clk 0:00:50]}  Kg8 {[%clk 0:00:08]} 32. Bxe7 {[%clk 0:00:50]}  Rc2 {[%clk 0:00:08]} 33. Qxb5 {[%clk 0:00:47]}  Ne3 {[%clk 0:00:05]} 34. Qe8+ {[%clk 0:00:47]} 1-0


[Site "https://www.chess.com"]

[Event "Titled Tuesday Blitz August 17 2021"]
[White "Bologan, Victor"]
[Black "Nozdrachev, Leonid"]
[WhiteFideId "13900048"]
[BlackFideId "24113433"]
[WhiteElo "2511"]
[BlackElo "2240"]
[Result "0-1"]
[Round "07"]
[TimeControl "180+1"]
[Date "2021.08.17"]
[WhiteClock "0:00:02"]
[BlackClock "0:00:02"]

1. e4 {[%clk 0:03:00]}  d6 {[%clk 0:02:59]} 2. d4 {[%clk 0:02:59]}  Nf6 {[%clk 0:02:59]} 3. Bd3 {[%clk 0:02:58]}  e5 {[%clk 0:02:59]} 4. c3 {[%clk 0:02:58]}  g6 {[%clk 0:02:59]} 5. Nf3 {[%clk 0:02:56]}  Nc6 {[%clk 0:02:56]} 6. O-O {[%clk 0:02:52]}  Bg7 {[%clk 0:02:56]} 7. Be3 {[%clk 0:02:47]}  O-O {[%clk 0:02:56]} 8. Nbd2 {[%clk 0:02:47]}  Re8 {[%clk 0:02:44]} 9. Re1 {[%clk 0:02:39]}  Bg4 {[%clk 0:02:40]} 10. h3 {[%clk 0:02:25]}  exd4 {[%clk 0:02:39]} 11. cxd4 {[%clk 0:02:23]}  Bxf3 {[%clk 0:02:38]} 12. Qxf3 {[%clk 0:02:22]}  Nb4 {[%clk 0:02:21]} 13. Bb1 {[%clk 0:02:19]}  c5 {[%clk 0:02:09]} 14. dxc5 {[%clk 0:02:12]}  dxc5 {[%clk 0:02:10]} 15. Rd1 {[%clk 0:02:09]}  Nd7 {[%clk 0:02:04]} 16. Nc4 {[%clk 0:02:06]}  Qc7 {[%clk 0:01:56]} 17. a3 {[%clk 0:01:39]}  Nc6 {[%clk 0:01:53]} 18. Ba2 {[%clk 0:01:33]}  Nd4 {[%clk 0:01:49]} 19. Bxd4 {[%clk 0:01:29]}  Bxd4 {[%clk 0:01:50]} 20. Rac1 {[%clk 0:01:27]}  Re7 {[%clk 0:01:42]} 21. b4 {[%clk 0:01:23]}  b6 {[%clk 0:01:39]} 22. bxc5 {[%clk 0:00:50]}  bxc5 {[%clk 0:01:40]} 23. Ne3 {[%clk 0:00:48]}  Qe5 {[%clk 0:01:15]} 24. Ng4 {[%clk 0:00:44]}  Qxe4 {[%clk 0:01:01]} 25. Qxe4 {[%clk 0:00:40]}  Rxe4 {[%clk 0:01:00]} 26. Bd5 {[%clk 0:00:39]}  Rae8 {[%clk 0:00:36]} 27. Bxe4 {[%clk 0:00:39]}  Rxe4 {[%clk 0:00:37]} 28. Re1 {[%clk 0:00:38]}  Rf4 {[%clk 0:00:36]} 29. g3 {[%clk 0:00:37]}  Rf3 {[%clk 0:00:33]} 30. Re7 {[%clk 0:00:25]}  h5 {[%clk 0:00:11]} 31. Nh6+ {[%clk 0:00:21]}  Kg7 {[%clk 0:00:07]} 32. Rxd7 {[%clk 0:00:18]}  Kxh6 {[%clk 0:00:04]} 33. Rxa7 {[%clk 0:00:11]}  Rxf2 {[%clk 0:00:04]} 34. Kh1 {[%clk 0:00:11]}  Rb2 {[%clk 0:00:02]} 35. Rxf7 {[%clk 0:00:09]}  Rb3 {[%clk 0:00:02]} 36. Kg2 {[%clk 0:00:09]}  Rxa3 {[%clk 0:00:02]} 37. Rc2 {[%clk 0:00:09]}  Rd3 {[%clk 0:00:02]} 38. Rf3 {[%clk 0:00:10]}  Rd1 {[%clk 0:00:01]} 39. h4 {[%clk 0:00:09]}  Rg1+ {[%clk 0:00:01]} 40. Kh2 {[%clk 0:00:09]}  Ra1 {[%clk 0:00:02]} 41. Re2 {[%clk 0:00:08]}  Ra6 {[%clk 0:00:02]} 42. Re7 {[%clk 0:00:06]}  Rc6 {[%clk 0:00:02]} 43. Rff7 {[%clk 0:00:05]}  g5 {[%clk 0:00:02]} 44. Rc7 {[%clk 0:00:04]}  Rxc7 {[%clk 0:00:02]} 45. Rxc7 {[%clk 0:00:04]}  gxh4 {[%clk 0:00:02]} 46. gxh4 {[%clk 0:00:04]}  Kg6 {[%clk 0:00:02]} 47. Kh3 {[%clk 0:00:04]}  Kf5 {[%clk 0:00:02]} 48. Rh7 {[%clk 0:00:04]}  Kg6 {[%clk 0:00:02]} 49. Rd7 {[%clk 0:00:04]}  Kh6 {[%clk 0:00:02]} 50. Rd5 {[%clk 0:00:05]}  Kg6 {[%clk 0:00:02]} 51. Rg5+ {[%clk 0:00:05]}  Kh6 {[%clk 0:00:03]} 52. Rd5 {[%clk 0:00:05]}  Kg6 {[%clk 0:00:02]} 53. Kg3 {[%clk 0:00:06]}  Kh6 {[%clk 0:00:03]} 54. Kf4 {[%clk 0:00:06]}  Kg6 {[%clk 0:00:03]} 55. Rd6+ {[%clk 0:00:06]}  Kg7 {[%clk 0:00:03]} 56. Kg5 {[%clk 0:00:05]}  Bf2 {[%clk 0:00:02]} 57. Rc6 {[%clk 0:00:04]}  Kf7 {[%clk 0:00:02]} 58. Kxh5 {[%clk 0:00:05]}  Ke7 {[%clk 0:00:02]} 59. Kg5 {[%clk 0:00:05]}  Kd7 {[%clk 0:00:02]} 60. Rf6 {[%clk 0:00:04]}  Bd4 {[%clk 0:00:02]} 61. Rf5 {[%clk 0:00:04]}  Kd6 {[%clk 0:00:02]} 62. h5 {[%clk 0:00:04]}  c4 {[%clk 0:00:02]} 63. Kf4 {[%clk 0:00:04]}  c3 {[%clk 0:00:02]} 64. Ke4 {[%clk 0:00:03]}  c2 {[%clk 0:00:03]} 65. Kf4 {[%clk 0:00:02]}  Bb2 {[%clk 0:00:02]} 0-1


[Site "https://www.chess.com"]